bitfinex/quotes_SOLUSD_20240603
["timestamp","ask_amount","ask_price","bid_price","bid_amount"]
[1717376525951,0.61417517,162.83,162.82,6.154]
[1717376526271,0.61417517,162.83,162.82,10.504]
[1717376527764,0.61417517,162.83,162.82,6.154]
[1717376527959,7.19917517,162.83,162.79,18.15555303]
[1717376528164,7.19917517,162.83,162.8,6.154]
[1717376528339,7.19917517,162.83,162.79,13.5700147]
[1717376528340,6.4704,162.82,162.78,9.2200147]
[1717376528745,6.4704,162.82,162.78,13.5700147]
[1717376528948,6.4704,162.82,162.79,6.154]
[1717376529282,6.4704,162.82,162.8,6.154]
[1717376530048,0.61417517,162.83,162.8,10.504]
[1717376530776,0.61417517,162.83,162.8,6.154]
[1717376530777,7.17037517,162.83,162.8,6.154]
[1717376530978,7.17037517,162.83,162.79,4.35]
[1717376531268,6.5562,162.82,162.8,6.154]
[1717376532156,6.5562,162.82,162.77,46.1000147]
[1717376532364,6.5562,162.82,162.8,6.154]
[1717376534879,0.61417517,162.83,162.78,0.17]
[1717376534880,0.61417517,162.83,162.81,4.35]
[1717376535082,0.61417517,162.83,162.82,6.154]
[1717376535464,0.61417517,162.83,162.81,4.35]
[1717376535856,0.61417517,162.83,162.82,6.154]
[1717376539683,0.61417517,162.83,162.81,6.154]
[1717376540462,0.61417517,162.83,162.78,46.2700147]
[1717376540667,6.3244,162.82,162.78,9.2200147]
[1717376540876,6.3244,162.82,162.78,4.35]
[1717376541057,6.3244,162.82,162.75,55.03555303]
[1717376541269,4.35,162.81,162.75,13.5700147]
[1717376541467,4.35,162.81,162.75,4.35]
[1717376541669,4.35,162.8,162.76,6.154]
[1717376541876,6.2911,162.79,162.77,6.154]
[1717376542594,10.6411,162.79,162.77,6.154]
[1717376543108,6.1775,162.78,162.77,6.154]
[1717376543271,26.6453,162.78,162.71,50.45416972]
[1717376543464,4.35,162.76,162.72,6.154]
[1717376543670,10.4793,162.76,162.72,6.154]
[1717376543892,6.1293,162.76,162.72,6.154]
[1717376545068,6.1293,162.76,162.7,6.154]
[1717376545274,6.1293,162.76,162.72,6.154]
[1717376545476,10.4793,162.76,162.69,43.034]
[1717376545685,6.649,162.75,162.71,6.154]
[1717376545898,10.999,162.75,162.71,6.154]
[1717376546270,6.649,162.74,162.71,6.154]
[1717376546471,10.999,162.74,162.71,6.154]
[1717376546690,6.649,162.73,162.69,6.154]
[1717376547076,10.999,162.73,162.69,6.154]
[1717376547994,6.649,162.73,162.69,6.154]
[1717376548686,6.649,162.73,162.68,6.154]
[1717376549083,10.8278,162.74,162.68,6.154]
[1717376549283,6.4778,162.74,162.7,4.35]
[1717376549495,4.35,162.76,162.71,4.35]
[1717376549891,6.4778,162.75,162.71,4.35]
[1717376550779,4.35,162.77,162.71,4.35]
[1717376550999,6.2101,162.79,162.72,4.35]
[1717376551277,6.2101,162.79,162.75,6.154]
[1717376551503,21.9256,162.84,162.77,6.154]
[1717376551685,15.7155,162.84,162.78,4.35]
[1717376551892,6.0823,162.86,162.79,0.17]
[1717376552100,6.0823,162.86,162.82,6.154]
[1717376552301,10.4323,162.86,162.81,4.35]
[1717376552691,6.0823,162.86,162.81,4.35]
[1717376552892,4.35,162.87,162.81,4.35]
[1717376553782,4.35,162.87,162.82,6.154]
[1717376553985,18.1849,162.88,162.79,6.324]
[1717376554799,2.2717,162.87,162.79,6.324]
[1717376555391,2.2719,162.86,162.77,36.88]
[1717376555591,15.9133,162.88,162.78,6.154]
[1717376555592,2.272,162.85,162.78,6.154]
[1717376555797,6.67737517,162.83,162.78,6.154]
[1717376556201,15.69457517,162.83,162.78,6.154]
[1717376556505,6.0632,162.82,162.74,6.154]
[1717376556692,6.0632,162.82,162.73,43.034]
[1717376557703,8.3356,162.82,162.73,43.034]
[1717376557908,8.3356,162.82,162.74,0.34]
[1717376558105,2.2726,162.81,162.71,6.154]
[1717376558414,10.6082,162.82,162.71,6.154]
[1717376558608,2.273,162.78,162.71,6.154]
[1717376559221,0.61417517,162.72,162.7,6.154]
[1717376561296,0.61417517,162.72,162.68,6.154]
[1717376563831,0.61417517,162.72,162.67,6.324]
[1717376564303,0.61417517,162.72,162.67,6.154]
[1717376564500,7.14547517,162.72,162.67,6.154]
[1717376565926,0.61417517,162.72,162.67,66.154]
[1717376566225,0.61417517,162.72,162.68,0.17]
[1717376570736,0.61417517,162.72,162.7,6.154]
[1717376571046,0.61417517,162.72,162.71,0.17]
[1717376571227,0.61417517,162.72,162.71,103.374]
[1717376573033,0.61417517,162.72,162.71,118.61813833]
[1717376573631,0.61417517,162.72,162.71,137.84616513]
[1717376574333,15.0121,162.87,162.79,43.034]
[1717376574554,15.0121,162.87,162.8,0.17]
[1717376575223,15.0121,162.87,162.8,0.34]
[1717376575536,6.2585,162.88,162.82,6.154]
[1717376576528,6.2585,162.88,162.8,43.374]
[1717376576731,6.2585,162.88,162.8,103.374]
[1717376579140,0.61425062,162.81,162.8,103.374]
[1717376580244,0.61425062,162.81,162.8,43.374]
[1717376581853,0.61425062,162.81,162.8,103.374]
[1717376582724,0.61425062,162.81,162.8,109.9972]
[1717376583150,0.61425062,162.81,162.8,103.374]
[1717376583451,0.61425062,162.81,162.8,43.374]
[1717376583949,0.61425062,162.81,162.8,103.374]
[1717376584125,0.61425062,162.81,162.8,110.0176]
[1717376587043,0.61425062,162.81,162.8,103.374]
[1717376588448,1e-08,162.81,162.8,125.4852]
[1717376588638,0.03832914,162.91,162.88,43.034]
[1717376588952,0.03832914,162.91,162.89,0.34]
[1717376589333,0.03832914,162.91,162.89,0.17]
[1717376589548,0.03832914,162.91,162.89,0.34]
[1717376590330,0.03832914,162.91,162.89,0.17]
[1717376590545,0.03832914,162.91,162.86,43.034]
[1717376590757,0.03832914,162.91,162.87,0.34]
[1717376593325,0.03832914,162.91,162.86,43.034]
[1717376593326,16.637,162.9,162.86,43.034]
[1717376593526,6.0876,162.89,162.85,6.154]
[1717376593949,0.03832914,162.91,162.85,103.034]
[1717376594133,0.03832914,162.91,162.86,0.34]
[1717376595845,0.03832914,162.91,162.88,6.154]
[1717376596058,0.03832914,162.91,162.89,6.154]
[1717376596755,0.03832914,162.91,162.89,10.504]
[1717376597576,0.03832914,162.91,162.89,6.154]
[1717376599173,0.61391123,162.9,162.89,6.154]
[1717376599350,0.61391123,162.9,162.87,4.35]
[1717376599969,0.61391123,162.9,162.88,4.52]
[1717376600153,0.61391123,162.9,162.88,4.35]
[1717376600360,0.61391123,162.9,162.89,6.154]
[1717376600660,0.61391123,162.9,162.89,10.504]
[1717376601856,0.61391123,162.9,162.88,10.504]
[1717376602866,0.61391123,162.9,162.88,4.35]
[1717376603272,0.61391123,162.9,162.86,0.34]
[1717376603577,7.11781123,162.9,162.85,41.23]
[1717376603887,7.11781123,162.9,162.85,47.384]
[1717376604053,6.265,162.89,162.85,47.384]
[1717376604462,0.61391123,162.9,162.87,6.154]
[1717376607279,11.41611123,162.9,162.85,10.504]
[1717376610454,6.0488,162.89,162.85,10.504]
[1717376610854,6.0488,162.88,162.85,10.504]
[1717376611153,6.0488,162.88,162.85,6.154]
[1717376611553,6.73711123,162.9,162.85,10.504]
[1717376611763,6.73711123,162.9,162.86,4.35]
[1717376613183,6.73711123,162.9,162.87,6.154]
[1717376613570,0.61391123,162.9,162.87,6.154]
[1717376614462,0.61391123,162.9,162.87,10.504]
[1717376618974,0.61391123,162.9,162.87,4.35]
[1717376619283,0.61391123,162.88,162.87,10.504]
[1717376619484,0.61391123,162.88,162.86,0.17]
[1717376619680,0.61391123,162.88,162.85,47.384]
[1717376619881,0.61391123,162.88,162.86,4.35]
[1717376620667,0.61391123,162.88,162.87,6.154]
[1717376621270,0.61391123,162.88,162.87,10.504]
[1717376622378,0.61391123,162.88,162.87,107.384]
[1717376622613,0.61391123,162.88,162.87,117.46886311]
[1717376622890,0.61391123,162.88,162.87,126.40472031]
[1717376624058,0.61391123,162.88,162.87,122.05472031]
[1717376624266,0.61391123,162.88,162.87,49.56892031]
[1717376624796,0.61391123,162.88,162.87,51.13706311]
[1717376625683,0.61391123,162.88,162.87,46.78706311]
[1717376625994,0.61391123,162.88,162.87,51.13706311]
[1717376627588,0.61391123,162.88,162.87,111.13706311]
[1717376627964,0.61391123,162.88,162.87,120.35296888]
[1717376629165,0.61391123,162.88,162.87,142.73376888]
[1717376629366,0.03832914,162.91,162.9,65.4148]
[1717376629569,6.4801,163.03,162.95,36.88]
[1717376629570,4.35,163.01,162.95,36.88]
[1717376629779,4.35,163.01,162.94,66.154]
[1717376629780,8.7496,163.03,162.97,6.154]
[1717376629981,4.35,163.01,162.97,6.154]
[1717376630974,4.35,163.01,162.95,6.154]
[1717376631176,4.35,163.01,162.95,10.504]
[1717376631588,4.35,163.01,162.96,0.17]
[1717376632295,10.7607,163.01,162.96,0.17]
[1717376632668,6.4107,163.01,162.96,0.17]
[1717376632872,10.7607,163.01,162.96,0.17]
[1717376633376,6.4107,163.01,162.96,0.17]
[1717376633579,10.7607,163.01,162.96,0.17]
[1717376634405,6.4107,163.01,162.96,0.17]
[1717376634588,10.7607,163.01,162.96,0.17]
[1717376635303,6.4107,163.01,162.96,0.17]
[1717376635482,6.1318,162.99,162.96,6.154]
[1717376635689,10.4818,162.98,162.96,6.154]
[1717376636117,4.35,162.97,162.9,43.034]
[1717376636402,4.35,162.97,162.93,6.154]
[1717376636607,10.4818,162.98,162.94,1.22622061]
[1717376637112,4.35,163.0,162.95,10.504]
[1717376637305,4.35,163.0,162.95,10.674]
[1717376637982,13.1386,163.0,162.95,6.154]
[1717376638198,4.35,162.99,162.95,6.154]
[1717376638818,22.0632,162.99,162.95,6.154]
[1717376638981,4.35,162.97,162.95,6.154]
[1717376639181,0.61368518,162.96,162.95,6.154]
[1717376639907,0.61368518,162.96,162.94,6.154]
[1717376640614,0.61368518,162.96,162.94,10.504]
[1717376640919,0.61368518,162.96,162.95,0.17]
[1717376641405,0.61368518,162.96,162.94,6.154]
[1717376641706,0.61368518,162.96,162.91,43.034]
[1717376642086,0.61368518,162.96,162.91,47.384]
[1717376642482,0.61368518,162.96,162.91,43.034]
[1717376642682,0.61368518,162.96,162.91,47.384]
[1717376644328,4.96368518,162.96,162.9,0.34]
[1717376644484,10.9106,162.95,162.91,6.154]
[1717376645090,0.61368518,162.96,162.92,43.034]
[1717376645409,0.61368518,162.96,162.92,47.384]
[1717376646013,0.61368518,162.96,162.94,10.504]
[1717376646194,0.61368518,162.96,162.95,4.52]
[1717376646805,0.61368518,162.96,162.95,41.57]
[1717376647199,0.61368518,162.96,162.95,107.724]
[1717376647587,0.61368518,162.96,162.95,116.64064609]
[1717376648416,0.61368518,162.96,162.95,107.724]
[1717376650617,0.61368518,162.96,162.95,116.64064609]
[1717376653012,0.61368518,162.96,162.95,45.79664609]
[1717376653227,0.61368518,162.96,162.94,6.154]
[1717376653714,4.96368518,162.96,162.91,36.88]
[1717376653940,10.7211,162.95,162.87,60.0]
[1717376654227,4.35,162.94,162.87,96.88]
[1717376654393,4.35,162.93,162.87,41.23]
[1717376654591,4.35,162.92,162.87,43.034]
[1717376654790,2.2709,162.93,162.87,43.034]
[1717376654791,10.7211,162.91,162.87,43.034]
[1717376655015,10.7211,162.88,162.81,9.20770229]
[1717376655198,4.35,162.85,162.8,36.88]
[1717376655705,4.35,162.86,162.8,101.23]
[1717376655906,6.3711,162.88,162.8,36.88]
[1717376656118,8.6427,162.88,162.81,6.154]
[1717376656296,2.2717,162.87,162.8,6.154]
[1717376656495,8.6427,162.88,162.8,6.154]
[1717376657196,2.2718,162.87,162.81,6.154]
[1717376657702,8.6427,162.88,162.81,6.154]
[1717376657901,29.4491,162.91,162.84,96.88]
[1717376657902,16.3991,162.91,162.84,96.88]
[1717376658124,21.8479,162.93,162.84,103.034]
[1717376658125,8.7979,162.93,162.84,103.034]
[1717376658290,2.271,162.92,162.84,43.034]
[1717376658694,2.2711,162.91,162.84,43.034]
[1717376658891,6.527,162.93,162.84,43.034]
[1717376659201,0.61368518,162.85,162.84,43.034]
[1717376659798,0.61368518,162.85,162.84,0.17]
[1717376660205,0.61368518,162.85,162.83,6.154]
[1717376661015,0.61368518,162.85,162.81,6.154]
[1717376661718,0.61368518,162.85,162.82,0.17]
[1717376662515,6.69988518,162.85,162.82,0.17]
[1717376663606,0.61368518,162.85,162.82,0.17]
[1717376665310,6.71028518,162.85,162.81,6.154]
[1717376665542,6.0966,162.84,162.78,43.034]
[1717376666041,0.61368518,162.85,162.8,96.88]
[1717376666607,0.61368518,162.85,162.8,36.88]
[1717376666943,0.61368518,162.85,162.79,0.34]
[1717376670003,0.61368518,162.85,162.8,36.88]
[1717376670218,0.61368518,162.85,162.81,0.17]
[1717376670842,0.61368518,162.85,162.79,60.17]
[1717376670843,0.61368518,162.85,162.79,0.17]
[1717376671055,0.61368518,162.85,162.79,0.34]
[1717376672436,0.61368518,162.85,162.79,97.22]
[1717376675350,0.61368518,162.85,162.79,0.34]
[1717376675931,11.17528518,162.85,162.8,4.35]
[1717376677748,6.82528518,162.85,162.8,4.35]
[1717376678434,6.82528518,162.85,162.79,0.34]
[1717376678635,6.5085,162.84,162.8,4.35]
[1717376679040,0.61368518,162.81,162.8,10.504]
[1717376680865,0.61368518,162.81,162.79,0.34]
[1717376680866,0.61368518,162.81,162.79,6.324]
[1717376681167,0.61368518,162.81,162.79,6.154]
[1717376683172,0.61368518,162.81,162.8,4.35]
[1717376683745,0.61368518,162.81,162.8,4.52]
[1717376685044,0.61368518,162.81,162.8,0.17]
[1717376685360,0.61368518,162.81,162.8,4.52]
[1717376685858,0.61368518,162.81,162.75,96.88]
[1717376686032,0.61368518,162.81,162.76,4.35]
[1717376686239,0.61368518,162.81,162.77,6.154]
[1717376689058,0.61368518,162.81,162.75,6.154]
[1717376689059,10.6136,162.8,162.75,6.154]
[1717376689269,6.4416,162.79,162.75,6.154]
[1717376689950,10.7916,162.79,162.75,6.154]
[1717376690749,27.1175,162.77,162.73,6.154]
[1717376690960,4.35,162.76,162.73,6.154]
[1717376691461,6.4331,162.79,162.73,6.154]
[1717376691648,6.4331,162.79,162.73,10.504]
[1717376691850,10.7831,162.79,162.73,10.504]
[1717376692150,10.7831,162.79,162.73,4.35]
[1717376694677,2.88638518,162.81,162.75,4.35]
[1717376694678,0.61368518,162.81,162.75,4.35]
[1717376694974,11.28908518,162.81,162.76,4.52]
[1717376695159,11.28908518,162.81,162.75,4.35]
[1717376695777,4.35,162.8,162.75,4.35]
[1717376697476,9.21168518,162.81,162.75,4.35]
[1717376697652,4.35,162.8,162.75,4.35]
[1717376698670,10.8148,162.79,162.74,4.52]
[1717376698877,10.8148,162.79,162.72,36.88]
[1717376699079,0.61368518,162.73,162.72,36.88]
[1717376699254,0.61368518,162.73,162.72,44.98710042]
[1717376700272,0.61368518,162.73,162.72,40.63710042]
[1717376700644,0.61368518,162.73,162.72,44.98710042]
[1717376700851,0.61368518,162.73,162.72,3.58710042]
[1717376701068,0.61368518,162.73,162.7,6.154]
[1717376701271,0.61368518,162.73,162.71,14.26151039]
[1717376701567,0.61368518,162.73,162.71,6.154]
[1717376702668,0.61368518,162.73,162.72,7.93732392]
[1717376702970,0.61368518,162.73,162.72,3.58732392]
[1717376703154,0.61368518,162.73,162.72,7.93732392]
[1717376703570,0.61368518,162.73,162.72,0.17]
[1717376703780,0.61368518,162.73,162.71,6.154]
[1717376704881,0.61368518,162.73,162.71,10.504]
[1717376708182,0.61368518,162.73,162.72,41.4]
[1717376708488,0.61368518,162.73,162.72,49.3370055]
[1717376708687,6.328,162.83,162.76,60.0]
[1717376708874,6.6525,162.87,162.79,4.35]
[1717376709086,6.6525,162.87,162.8,4.35]
[1717376709087,4.35,162.86,162.8,4.35]
[1717376709279,8.9242,162.87,162.8,4.35]
[1717376709585,4.35,162.86,162.8,4.35]
[1717376710862,6.5689,162.91,162.82,36.88]
[1717376711081,6.5689,162.91,162.84,4.35]
[1717376711284,6.6213,162.9,162.85,6.154]
[1717376711463,6.5689,162.9,162.85,6.154]
[1717376711666,10.9189,162.9,162.83,0.17]
[1717376711871,10.9189,162.9,162.85,6.154]
[1717376712072,13.1902,162.9,162.85,6.154]
[1717376713070,4.35,162.89,162.83,4.69]
[1717376713278,4.35,162.87,162.8,36.88]
[1717376713496,4.35,162.86,162.8,41.23]
[1717376713981,4.35,162.86,162.81,4.35]
[1717376714180,6.5601,162.88,162.82,4.52]
[1717376714400,10.9101,162.88,162.82,4.52]
[1717376714598,6.5601,162.88,162.82,4.52]
[1717376714798,10.9101,162.88,162.83,4.35]
[1717376715886,6.5601,162.88,162.82,6.324]
[1717376716918,6.5601,162.88,162.82,0.17]
[1717376717409,8.8317,162.88,162.82,0.17]
[1717376718306,8.8317,162.88,162.81,6.324]
[1717376718512,2.2717,162.87,162.8,0.17]
[1717376719191,0.61425062,162.81,162.8,0.17]
[1717376720118,0.61425062,162.81,162.8,0.34]
[1717376724613,0.61425062,162.81,162.8,49.6971]
[1717376724806,0.61425062,162.81,162.8,65.5757]
[1717376728002,0.61425062,162.81,162.8,78.20972179]
[1717376728211,0.61425062,162.81,162.8,98.20972179]
[1717376728512,0.61425062,162.81,162.8,88.99062687]
[1717376729919,0.61425062,162.81,162.8,102.03062687]
[1717376731119,0.25425062,162.81,162.8,120.40062687]
[1717376731318,21.7487,162.96,162.9,43.034]
[1717376733098,6.1034,162.96,162.9,43.034]
[1717376733296,6.1034,162.96,162.91,0.34]
[1717376734804,6.6637,162.97,162.91,0.34]
[1717376735002,6.6637,162.97,162.9,43.034]
[1717376735203,2.2705,162.96,162.88,36.88]
[1717376735427,2.2706,162.95,162.88,36.88]
[1717376735793,2.2705,162.96,162.88,36.88]
[1717376736726,2.2705,162.96,162.87,43.374]
[1717376736900,2.2705,162.96,162.88,0.34]
[1717376737618,2.2706,162.95,162.88,0.34]
[1717376737819,4.34,162.94,162.89,4.34]
[1717376738024,4.34,162.94,162.89,10.494]
[1717376738222,10.5176,162.94,162.89,10.494]
[1717376738834,6.2452,162.91,162.87,36.88]
[1717376739001,6.2452,162.91,162.87,47.374]
[1717376739329,0.61398662,162.88,162.87,10.494]
[1717376741449,0.61398662,162.88,162.87,47.374]
[1717376741640,0.61398662,162.88,162.87,47.714]
[1717376743431,0.61398662,162.88,162.87,47.544]
[1717376744599,0.61398662,162.88,162.87,43.204]
[1717376745042,0.61398662,162.88,162.85,43.034]
[1717376745217,0.61398662,162.88,162.87,10.494]
[1717376745930,0.61398662,162.88,162.87,6.154]
[1717376746232,0.61398662,162.88,162.87,10.494]
[1717376746536,0.61398662,162.88,162.86,6.494]
[1717376746712,0.61398662,162.88,162.86,6.154]
[1717376747617,0.61398662,162.88,162.84,6.154]
[1717376747850,7.18638662,162.88,162.84,10.494]
[1717376748533,6.142,162.87,162.84,6.139]
[1717376749923,6.142,162.87,162.83,4.34]
[1717376749924,6.142,162.87,162.82,6.139]
[1717376750226,6.142,162.87,162.84,6.139]
[1717376751926,6.142,162.87,162.85,6.139]
[1717376753142,6.142,162.87,162.84,6.139]
[1717376753845,6.142,162.87,162.84,10.479]
[1717376754015,0.61398662,162.88,162.84,10.479]
[1717376754717,7.10378662,162.88,162.84,10.479]
[1717376755224,7.10378662,162.88,162.83,10.479]
[1717376756129,11.44378662,162.88,162.82,6.139]
[1717376756340,6.3727,162.87,162.84,6.139]
[1717376757220,6.3727,162.87,162.81,36.88]
[1717376757430,10.7127,162.87,162.8,43.019]
[1717376757726,6.4221,162.85,162.79,9.21576752]
[1717376757939,10.7621,162.85,162.77,46.05576752]
[1717376758125,10.7621,162.85,162.79,4.34]
[1717376758320,6.4221,162.85,162.8,4.34]
[1717376758749,6.4221,162.85,162.81,6.139]
[1717376759040,6.4221,162.85,162.81,4.34]
[1717376759223,0.61398662,162.82,162.81,4.34]
[1717376759555,0.61398662,162.82,162.81,10.479]
[1717376761015,0.61398662,162.82,162.78,42.979]
[1717376761250,0.61398662,162.82,162.8,10.479]
[1717376761455,6.63608662,162.82,162.77,9.21716235]
[1717376761753,10.97608662,162.82,162.78,3.41515977]
[1717376761922,10.8375,162.81,162.78,3.41515977]
[1717376762126,6.4975,162.81,162.78,6.139]
[1717376763544,10.8375,162.81,162.78,6.139]
[1717376764049,6.5609,162.8,162.78,6.139]
[1717376764439,6.5609,162.8,162.76,6.139]
[1717376764834,6.0598,162.79,162.76,6.139]
[1717376765249,6.0598,162.79,162.73,42.979]
[1717376765250,10.3998,162.79,162.73,42.979]
[1717376765420,10.3998,162.79,162.75,6.139]
[1717376765925,6.2245,162.78,162.75,6.139]
[1717376766128,10.5645,162.78,162.75,6.139]
[1717376766339,10.5645,162.78,162.74,6.139]
[1717376766750,6.2245,162.78,162.74,6.139]
[1717376767445,6.2245,162.78,162.71,42.979]
[1717376767654,10.5645,162.78,162.74,6.139]
[1717376768853,10.5645,162.78,162.72,4.51]
[1717376768854,10.5645,162.78,162.73,6.139]
[1717376769055,6.0234,162.76,162.73,6.139]
[1717376769636,6.0234,162.76,162.71,6.139]
[1717376770035,6.0234,162.76,162.73,6.139]
[1717376773238,16.5353,162.81,162.74,10.479]
[1717376773436,0.61398662,162.82,162.74,42.979]
[1717376773653,0.61398662,162.82,162.79,4.34]
[1717376773838,0.61398662,162.82,162.81,4.34]
[1717376775158,0.61398662,162.82,162.81,4.51]
[1717376775740,0.61398662,162.82,162.81,47.659]
[1717376776447,0.61398662,162.82,162.81,53.9501]
[1717376778759,0.61398662,162.82,162.81,47.659]
[1717376778949,0.61398662,162.82,162.81,54.3059]
[1717376783768,0.61398662,162.82,162.81,47.659]
[1717376786069,0.61398662,162.82,162.81,42.979]
[1717376786277,0.61398662,162.82,162.81,10.479]
[1717376787504,0.61398662,162.82,162.81,42.979]
[1717376787675,0.61398662,162.82,162.81,47.659]
[1717376789090,0.61398662,162.82,162.81,107.659]
[1717376789878,0.61398662,162.82,162.81,114.1377]
[1717376790795,6.0995,162.92,162.85,102.979]
[1717376791073,6.0995,162.92,162.89,4.34]
[1717376793489,6.3,162.94,162.9,4.34]
[1717376793802,6.3,162.94,162.91,4.34]
[1717376794386,6.3,162.94,162.91,10.479]
[1717376794587,8.5705,162.96,162.91,10.479]
[1717376795718,12.9105,162.96,162.91,10.479]
[1717376796593,6.6106,162.95,162.91,6.139]
[1717376796790,4.34,162.95,162.91,6.139]
[1717376797109,12.9105,162.96,162.91,6.139]
[1717376797804,8.5705,162.96,162.91,6.139]
[1717376798014,12.9105,162.96,162.91,6.139]
[1717376798804,12.9105,162.96,162.86,0.34]
[1717376798805,8.5121,163.0,162.95,4.34]
[1717376799189,2.2698,163.01,162.96,4.34]
[1717376799389,2.2699,163.0,162.96,4.34]
[1717376799584,2.2699,163.0,162.95,4.34]
[1717376801492,6.6099,163.0,162.95,4.34]
[1717376801807,6.6099,163.0,162.93,36.84]
[1717376802006,6.6099,163.0,162.95,4.34]
[1717376802805,2.2699,163.0,162.95,4.34]
[1717376803117,6.6099,163.0,162.95,4.34]
[1717376803798,6.6099,163.0,162.94,6.139]
[1717376803799,2.2699,163.0,162.94,6.139]
[1717376804004,4.34,162.98,162.94,6.139]
[1717376804198,2.2699,163.0,162.94,6.139]
[1717376804405,4.34,162.99,162.94,6.139]
[1717376804704,2.2699,163.0,162.94,10.479]
[1717376804919,4.34,162.99,162.94,10.479]
[1717376805790,6.61,162.99,162.94,10.479]
[1717376806910,4.34,162.99,162.94,10.479]
[1717376807518,2.2699,163.0,162.94,10.479]
[1717376807700,6.6099,163.0,162.94,10.479]
[1717376808105,4.34,163.0,162.94,10.479]
[1717376808305,4.34,163.0,162.95,4.34]
[1717376810617,6.6099,163.0,162.95,4.34]
[1717376811019,6.6099,163.0,162.94,10.479]
[1717376812131,6.6101,162.99,162.92,6.479]
[1717376812303,6.6101,162.99,162.94,10.479]
[1717376812695,4.34,162.99,162.94,6.139]
[1717376812903,4.34,162.99,162.94,10.479]
[1717376814999,2.2699,163.0,162.94,10.479]
[1717376815508,4.34,162.99,162.94,10.479]
[1717376815729,6.6101,162.99,162.94,6.139]
[1717376816539,4.34,162.99,162.94,6.139]
[1717376817526,6.6101,162.99,162.94,10.479]
[1717376817707,4.34,162.99,162.94,10.479]
[1717376818608,6.6098,163.01,162.95,4.34]
[1717376818802,2.2698,163.01,162.95,4.34]
[1717376819018,6.6098,163.01,162.95,4.34]
[1717376819214,2.2699,163.0,162.95,4.34]
[1717376819717,6.6098,163.01,162.95,4.34]
[1717376819914,6.61,163.0,162.93,36.84]
[1717376820098,6.61,163.0,162.94,10.479]
[1717376820735,4.5396,163.01,162.89,36.84]
[1717376820932,4.34,162.99,162.94,6.139]
[1717376821233,6.6101,162.99,162.94,10.479]
[1717376821928,6.6101,162.99,162.95,6.139]
[1717376822917,2.2702,162.98,162.95,6.139]
[1717376823118,6.6101,162.99,162.95,6.139]
[1717376823634,2.2702,162.98,162.95,6.139]
[1717376823929,2.2702,162.98,162.94,6.139]
[1717376824347,6.6103,162.97,162.94,6.139]
[1717376825019,4.34,162.97,162.93,6.139]
[1717376825623,4.34,162.98,162.93,6.139]
[1717376825960,6.6102,162.98,162.93,6.139]
[1717376826122,2.2701,162.99,162.93,6.139]
[1717376826328,2.2701,162.99,162.94,6.139]
[1717376826635,6.6101,162.99,162.94,6.139]
[1717376827662,2.2701,162.99,162.94,6.139]
[1717376827951,6.6101,162.99,162.94,6.139]